fUSD/lending_fUSD_20240428
["ID","MTS","AMOUNT","RATE_DAILY","PERIOD"]
[324803295,1714339863908,-500.0,0.00011232,2]
[324803296,1714339863918,-159.49821,0.00011232,2]
[324803297,1714339863926,-2707.78,0.00011232,2]
[324803298,1714339863936,-159.49821,0.00011232,2]
[324803299,1714339863945,-159.49821,0.00011232,2]
[324803300,1714339863954,-159.49821,0.00011232,2]
[324803301,1714339863965,-500.0,0.00011232,2]
[324803302,1714339863975,-500.0,0.00011232,2]
[324803303,1714339863987,-1038.22,0.00011232,2]
[324803304,1714339863997,-500.0,0.00011232,2]
[324803305,1714339864006,-789.36,0.00011232,2]
[324803306,1714339864016,-2766.64,0.00011232,2]
[324803307,1714339864026,-500.0,0.00011232,2]
[324803308,1714339864036,-500.0,0.00011232,2]
[324803309,1714339864046,-987.03,0.00011232,2]
[324803310,1714339864054,-500.0,0.00011232,2]
[324803311,1714339864063,-1211.54,0.00011232,2]
[324803312,1714339864073,-1666.13,0.00011232,2]
[324803313,1714339864082,-500.0,0.00011232,2]
[324803314,1714339864091,-675.35,0.00011232,2]
[324803315,1714339864100,-449.96811448,0.00011232,2]
[324803316,1714339864109,-500.0,0.00011232,2]
[324803317,1714339864118,-1349.22,0.00011232,2]
[324803318,1714339864128,-1516.18,0.00011232,2]
[324803319,1714339864137,-277.302137,0.00011232,2]
[324803320,1714339864147,-277.302137,0.00011232,2]
[324803321,1714339864155,-277.302137,0.00011232,2]
[324803322,1714339864164,-277.302137,0.00011232,2]
[324803323,1714339864174,-500.0,0.00011232,2]
[324803324,1714339864182,-500.0,0.00011232,2]
[324803325,1714339864191,-1899.29,0.00011232,2]
[324803326,1714339864200,-277.302137,0.00011232,2]
[324803327,1714339864209,-277.302137,0.00011232,2]
[324803328,1714339864219,-6591.59,0.00011232,2]
[324803329,1714339864227,-277.302137,0.00011232,2]
[324803330,1714339864236,-277.302137,0.00011232,2]
[324803331,1714339864245,-500.0,0.00011232,2]
[324803332,1714339864255,-500.0,0.00011232,2]
[324803333,1714339864265,-783.36,0.00011232,2]
[324803334,1714339864276,-1988.95,0.00011232,2]
[324803335,1714339864285,-380.077495,0.00011232,2]
[324803336,1714339864296,-380.077495,0.00011232,2]
[324803337,1714339864309,-1261.65,0.00011232,2]
[324803338,1714339864318,-380.077495,0.00011232,2]
[324803339,1714339864327,-380.077495,0.00011232,2]
[324803340,1714339864336,-500.0,0.00011232,2]
[324803341,1714339864345,-656.186263,0.00011232,2]
[324803342,1714339864354,-656.186263,0.00011232,2]
[324803343,1714339864363,-656.186263,0.00011232,2]
[324803344,1714339864372,-656.186263,0.00011232,2]
[324803345,1714339864381,-2135.06,0.00011232,2]
[324803346,1714339864390,-539.67231145,0.00011232,2]
[324803347,1714339864400,-380.077495,0.00011232,2]
[324803348,1714339864409,-500.0,0.00011232,2]
[324803349,1714339864418,-380.077495,0.00011232,2]
[324803350,1714339864427,-656.186263,0.00011232,2]
[324803351,1714339864436,-560.95,0.00011232,2]
[324803352,1714339864445,-380.077495,0.00011232,2]
[324803353,1714339864454,-380.077495,0.00011232,2]
[324803354,1714339864463,-656.186263,0.00011232,2]
[324803355,1714339864473,-562.7,0.00011232,2]
[324803356,1714339864482,-656.186263,0.00011232,2]
[324803357,1714339864492,-500.0,0.00011232,2]
[324803358,1714339864502,-656.186263,0.00011232,2]
[324803359,1714339864512,-6232.35,0.00011232,2]
[324803360,1714339864522,-500.0,0.00011232,2]
[324803361,1714339864531,-1410.0,0.00011232,2]
[324803362,1714339864542,-659.22,0.00011232,2]
[324803363,1714339864553,-500.0,0.00011232,2]
[324803364,1714339864563,-500.0,0.00011232,2]
[324803365,1714339864573,-1672.92,0.00011232,2]
[324803366,1714339864583,-1799.04,0.00011232,2]
[324803367,1714339864592,-500.0,0.00011232,2]
[324803368,1714339864602,-500.0,0.00011232,2]
[324803369,1714339864612,-895.24,0.00011232,2]
[324803370,1714339864623,-500.0,0.00011232,2]
[324803371,1714339864632,-151.0,0.00011232,2]
[324803372,1714339864642,-151.0,0.00011232,2]
[324803373,1714339864651,-500.0,0.00011232,2]
[324803374,1714339864660,-151.0,0.00011232,2]
[324803375,1714339864669,-151.0,0.00011232,2]
[324803376,1714339864678,-1513.28,0.00011232,2]
[324803377,1714339864687,-500.0,0.00011232,2]
[324803378,1714339864696,-6800.76,0.00011232,2]
[324803379,1714339864705,-500.0,0.00011232,2]
[324803380,1714339864714,-641.15,0.00011232,2]
[324803381,1714339864722,-500.0,0.00011232,2]
[324803382,1714339864731,-500.0,0.00011232,2]
[324803383,1714339864740,-500.0,0.00011232,2]
[324803384,1714339864749,-500.0,0.00011232,2]
[324803385,1714339864757,-500.0,0.00011232,2]
[324803386,1714339864770,-753.18,0.00011232,2]
[324803387,1714339864779,-500.0,0.00011232,2]
[324803388,1714339864787,-500.0,0.00011232,2]
[324803389,1714339864796,-500.0,0.00011232,2]
[324803390,1714339864805,-503.08267711,0.00011232,2]
[324803391,1714339864816,-500.0,0.00011232,2]
[324803392,1714339864825,-213.318458,0.00011232,2]
[324803393,1714339864834,-1733.37,0.00011232,2]
[324803394,1714339864844,-213.318458,0.00011232,2]
[324803395,1714339864853,-500.0,0.00011232,2]
[324803396,1714339864862,-213.318458,0.00011232,2]
[324803397,1714339864871,-213.318458,0.00011232,2]
[324803398,1714339864880,-213.318458,0.00011232,2]
[324803399,1714339864889,-782.1,0.00011232,2]
[324803400,1714339864899,-1652.85,0.00011232,2]
[324803401,1714339864908,-500.0,0.00011232,2]
[324803402,1714339864917,-500.0,0.00011232,2]
[324803403,1714339864926,-1590.77,0.00011232,2]
[324803404,1714339864936,-213.318458,0.00011232,2]
[324803405,1714339864945,-213.318458,0.00011232,2]
[324803406,1714339864954,-12133.37,0.00011232,2]
[324803407,1714339864963,-213.318458,0.00011232,2]
[324803408,1714339864973,-213.318458,0.00011232,2]
[324803409,1714339864982,-213.318458,0.00011232,2]
[324803410,1714339864991,-500.0,0.00011232,2]
[324803411,1714339865000,-2025.62,0.00011232,2]
[324803412,1714339865009,-1421.85,0.00011232,2]
[324803413,1714339865019,-1135.8,0.00011232,2]
[324803414,1714339865028,-500.0,0.00011232,2]
[324803415,1714339865037,-938.758321,0.00011232,2]
[324803416,1714339865047,-938.758321,0.00011232,2]
[324803417,1714339865056,-511.22230415,0.00011232,2]
[324803418,1714339865065,-938.758321,0.00011232,2]
[324803419,1714339865075,-938.758321,0.00011232,2]
[324803420,1714339865085,-4575.67,0.00011232,2]
[324803421,1714339865095,-938.758321,0.00011232,2]
[324803422,1714339865104,-166.351801,0.00011232,2]
[324803423,1714339865114,-166.351801,0.00011232,2]
[324803424,1714339865123,-166.351801,0.00011232,2]
[324803425,1714339865133,-166.351801,0.00011232,2]
[324803426,1714339865142,-500.0,0.00011232,2]
[324803427,1714339865152,-1396.35,0.00011232,2]
[324803428,1714339865161,-6107.04,0.00011232,2]
[324803429,1714339865170,-938.758321,0.00011232,2]
[324803430,1714339865180,-938.758321,0.00011232,2]
[324803431,1714339865189,-938.758321,0.00011232,2]
[324803432,1714339865199,-938.758321,0.00011232,2]
[324803433,1714339865208,-500.0,0.00011232,2]
[324803434,1714339865218,-166.351801,0.00011232,2]
[324803435,1714339865228,-938.758321,0.00011232,2]
[324803436,1714339865237,-166.351801,0.00011232,2]
[324803437,1714339865246,-166.351801,0.00011232,2]
[324803438,1714339865255,-1466.904079,0.00011232,2]
[324803439,1714339865264,-166.351801,0.00011232,2]
[324803440,1714339865274,-583.59,0.00011232,2]
[324803441,1714339865283,-1466.904079,0.00011232,2]
[324803442,1714339865293,-1466.904079,0.00011232,2]
[324803443,1714339865302,-1466.904079,0.00011232,2]
[324803444,1714339865311,-151.0,0.00011232,2]
[324803445,1714339865321,-1466.904079,0.00011232,2]
[324803446,1714339865330,-500.0,0.00011232,2]
[324803447,1714339865340,-998.38,0.00011232,2]
[324803448,1714339865349,-2527.69,0.00011232,2]
[324803449,1714339865359,-151.0,0.00011232,2]
[324803450,1714339865368,-151.0,0.00011232,2]
[324803451,1714339865378,-500.0,0.00011232,2]
[324803452,1714339865387,-151.0,0.00011232,2]
[324803453,1714339865396,-151.0,0.00011232,2]
[324803454,1714339865406,-500.0,0.00011232,2]
[324803455,1714339865415,-1466.904079,0.00011232,2]
[324803456,1714339865425,-1466.904079,0.00011232,2]
[324803457,1714339865434,-2789.13,0.00011232,2]
[324803458,1714339865443,-500.0,0.00011232,2]
[324803459,1714339865452,-1466.904079,0.00011232,2]
[324803460,1714339865462,-1466.904079,0.00011232,2]
[324803461,1714339865471,-1761.96,0.00011232,2]
[324803462,1714339865480,-151.0,0.00011232,2]
[324803463,1714339865489,-1466.904079,0.00011232,2]
[324803464,1714339865498,-151.0,0.00011232,2]
[324803465,1714339865508,-180.508781,0.00011232,2]
[324803466,1714339865517,-500.0,0.00011232,2]
[324803467,1714339865526,-1062.84,0.00011232,2]
[324803468,1714339865535,-888.470776,0.00011232,2]
[324803469,1714339865544,-888.470776,0.00011232,2]
[324803470,1714339865553,-500.0,0.00011232,2]
[324803471,1714339865562,-888.470776,0.00011232,2]
[324803472,1714339865572,-888.470776,0.00011232,2]
[324803473,1714339865582,-888.470776,0.00011232,2]
[324803474,1714339865592,-1977.9,0.00011232,2]
[324803475,1714339865601,-2491.39,0.00011232,2]
[324803476,1714339865610,-500.0,0.00011232,2]
[324803477,1714339865619,-888.470776,0.00011232,2]
[324803478,1714339865629,-701.170298,0.00011232,2]
[324803479,1714339865638,-888.470776,0.00011232,2]
[324803480,1714339865648,-701.170298,0.00011232,2]
[324803481,1714339865657,-500.0,0.00011232,2]
[324803482,1714339865666,-888.470776,0.00011232,2]
[324803483,1714339865676,-3361.84,0.00011232,2]
[324803484,1714339865685,-701.170298,0.00011232,2]
[324803485,1714339865694,-1098.32,0.00011232,2]
[324803486,1714339865703,-888.470776,0.00011232,2]
[324803487,1714339865712,-701.170298,0.00011232,2]
[324803488,1714339865722,-701.170298,0.00011232,2]
[324803489,1714339865731,-1109.842632,0.00011232,2]
[324803490,1714339865741,-1109.842632,0.00011232,2]
[324803491,1714339865750,-500.0,0.00011232,2]
[324803492,1714339865760,-500.0,0.00011232,2]
[324803493,1714339865773,-1109.842632,0.00011232,2]
[324803494,1714339865783,-888.470776,0.00011232,2]
[324803495,1714339865792,-1109.842632,0.00011232,2]
[324803496,1714339865801,-1109.842632,0.00011232,2]
[324803497,1714339865812,-701.170298,0.00011232,2]
[324803498,1714339865822,-701.170298,0.00011232,2]
[324803499,1714339865832,-500.0,0.00011232,2]
[324803500,1714339865841,-701.170298,0.00011232,2]
[324803501,1714339865853,-701.170298,0.00011232,2]
[324803502,1714339865863,-701.170298,0.00011232,2]
[324803503,1714339865872,-1109.842632,0.00011232,2]
[324803504,1714339865881,-500.0,0.00011232,2]
[324803505,1714339865891,-1081.51,0.00011232,2]
[324803506,1714339865901,-1109.842632,0.00011232,2]
[324803507,1714339865911,-1109.842632,0.00011232,2]
[324803508,1714339865921,-500.0,0.00011232,2]
[324803509,1714339865930,-1109.842632,0.00011232,2]
[324803510,1714339865940,-2735.15,0.00011232,2]
[324803511,1714339865949,-1109.842632,0.00011232,2]
[324803512,1714339865959,-587.363962,0.00011232,2]
[324803513,1714339865968,-500.0,0.00011232,2]
[324803514,1714339865977,-587.363962,0.00011232,2]
[324803515,1714339865987,-500.0,0.00011232,2]
[324803516,1714339865996,-587.363962,0.00011232,2]
[324803517,1714339866005,-587.363962,0.00011232,2]
[324803518,1714339866015,-587.363962,0.00011232,2]
[324803519,1714339866024,-1862.58,0.00011232,2]
[324803520,1714339866033,-4338.42,0.00011232,2]
[324803521,1714339866043,-587.363962,0.00011232,2]
[324803522,1714339866052,-500.0,0.00011232,2]
[324803523,1714339866062,-500.0,0.00011232,2]
[324803524,1714339866072,-1752.48,0.00011232,2]
[324803525,1714339866082,-500.0,0.00011232,2]
[324803526,1714339866091,-587.363962,0.00011232,2]
[324803527,1714339866102,-500.0,0.00011232,2]
[324803528,1714339866111,-587.363962,0.00011232,2]
[324803529,1714339866121,-587.363962,0.00011232,2]
[324803530,1714339866131,-844.65,0.00011232,2]
[324803531,1714339866140,-587.363962,0.00011232,2]
[324803532,1714339866150,-500.0,0.00011232,2]
[324803533,1714339866159,-2116.48,0.00011232,2]
[324803534,1714339866168,-500.0,0.00011232,2]
[324803535,1714339866178,-500.0,0.00011232,2]
[324803536,1714339866188,-500.0,0.00011232,2]
[324803537,1714339866198,-259.515436,0.00011232,2]
[324803538,1714339866207,-500.0,0.00011232,2]
[324803539,1714339866217,-259.515436,0.00011232,2]
[324803540,1714339866227,-259.515436,0.00011232,2]
[324803541,1714339866236,-1415.56,0.00011232,2]
[324803542,1714339866246,-1696.77,0.00011232,2]
[324803543,1714339866256,-259.515436,0.00011232,2]
[324803544,1714339866265,-259.515436,0.00011232,2]
[324803545,1714339866275,-552.51,0.00011232,2]
[324803546,1714339866285,-572.71596926,0.00011232,2]
[324803547,1714339866294,-500.0,0.00011232,2]
[324803548,1714339866303,-504.31666459,0.00011232,2]
[324803549,1714339866313,-500.0,0.00011232,2]
[324803550,1714339866322,-500.0,0.00011232,2]
[324803551,1714339866332,-259.515436,0.00011232,2]
[324803552,1714339866341,-7394.13,0.00011232,2]
[324803553,1714339866350,-259.515436,0.00011232,2]
[324803554,1714339866359,-259.515436,0.00011232,2]
[324803555,1714339866369,-259.515436,0.00011232,2]
[324803556,1714339866378,-259.515436,0.00011232,2]
[324803557,1714339866388,-500.0,0.00011232,2]
[324803558,1714339866399,-500.0,0.00011232,2]
[324803559,1714339866408,-151.0,0.00011232,2]
[324803560,1714339866417,-362.29492068,0.00011232,2]
[324803561,1714339866426,-151.0,0.00011232,2]
[324803562,1714339866435,-151.0,0.00011232,2]
[324803563,1714339866445,-151.0,0.00011232,2]
[324803564,1714339866454,-500.0,0.00011232,2]
[324803565,1714339866464,-151.0,0.00011232,2]
[324803566,1714339866474,-500.0,0.00011232,2]
[324803567,1714339866483,-2704.4,0.00011232,2]
[324803568,1714339866492,-500.0,0.00011232,2]
[324803569,1714339866501,-547.48,0.00011232,2]
[324803570,1714339866511,-250.0,0.00011232,2]
[324803571,1714339866520,-500.0,0.00011232,2]
[324803572,1714339866530,-250.0,0.00011232,2]
[324803573,1714339866540,-250.0,0.00011232,2]
[324803574,1714339866549,-250.0,0.00011232,2]
[324803575,1714339866559,-250.0,0.00011232,2]
[324803576,1714339866568,-500.0,0.00011232,2]
[324803577,1714339866578,-504.46913743,0.00011232,2]
[324803578,1714339866587,-250.0,0.00011232,2]
[324803579,1714339866596,-869.1,0.00011232,2]
[324803580,1714339866605,-250.0,0.00011232,2]
[324803581,1714339866614,-250.0,0.00011232,2]
[324803582,1714339866624,-250.0,0.00011232,2]
[324803583,1714339866634,-250.0,0.00011232,2]
[324803584,1714339866643,-500.0,0.00011232,2]
[324803585,1714339866653,-3366.67,0.00011232,2]
[324803586,1714339866663,-709.72,0.00011232,2]
[324803587,1714339866672,-4609.23,0.00011232,2]
[324803588,1714339866682,-849.0,0.00011232,2]
[324803589,1714339866692,-183.646046,0.00011232,2]
[324803590,1714339866702,-500.0,0.00011232,2]
[324803591,1714339866711,-183.646046,0.00011232,2]
[324803592,1714339866720,-1257.26,0.00011232,2]
[324803593,1714339866730,-183.646046,0.00011232,2]
[324803594,1714339866739,-500.0,0.00011232,2]
[324803595,1714339866748,-500.0,0.00011232,2]
[324803596,1714339866757,-183.646046,0.00011232,2]
[324803597,1714339866769,-183.646046,0.00011232,2]
[324803598,1714339866778,-972.25,0.00011232,2]
[324803599,1714339866788,-500.0,0.00011232,2]
[324803600,1714339866798,-1051.8,0.00011232,2]
[324803601,1714339866809,-183.646046,0.00011232,2]
[324803602,1714339866818,-183.646046,0.00011232,2]
[324803603,1714339866827,-183.646046,0.00011232,2]
[324803604,1714339866836,-183.646046,0.00011232,2]
[324803605,1714339866847,-1129.36,0.00011232,2]
[324803606,1714339866856,-183.646046,0.00011232,2]
[324803607,1714339866865,-500.0,0.00011232,2]
[324803608,1714339866875,-500.0,0.00011232,2]
[324803609,1714339866884,-1721.28,0.00011232,2]
[324803610,1714339866893,-1025.92,0.00011232,2]
[324803611,1714339866903,-505.66,0.00011232,2]
[324803612,1714339866913,-311.949248,0.00011232,2]
[324803613,1714339866921,-311.949248,0.00011232,2]
[324803614,1714339866931,-311.949248,0.00011232,2]
[324803615,1714339866940,-500.0,0.00011232,2]
[324803616,1714339866949,-151.0,0.00011232,2]
[324803617,1714339866958,-311.949248,0.00011232,2]
[324803618,1714339866968,-500.0,0.00011232,2]
[324803619,1714339866977,-151.0,0.00011232,2]
[324803620,1714339866986,-500.0,0.00011232,2]
[324803621,1714339866995,-311.949248,0.00011232,2]
[324803622,1714339867004,-151.0,0.00011232,2]
[324803623,1714339867013,-151.0,0.00011232,2]
[324803624,1714339867023,-10000.0,0.00011232,2]
[324803625,1714339867032,-151.0,0.00011232,2]
[324803626,1714339867041,-10000.0,0.00011232,2]
[324803627,1714339867051,-500.0,0.00011232,2]
[324803628,1714339867060,-10000.0,0.00011232,2]
[324803629,1714339867069,-10000.0,0.00011232,2]
[324803630,1714339867080,-500.0,0.00011232,2]
[324803631,1714339867089,-10000.0,0.00011232,2]
[324803632,1714339867098,-311.949248,0.00011232,2]
[324803633,1714339867107,-3106.8,0.00011232,2]
[324803634,1714339867118,-311.949248,0.00011232,2]
[324803635,1714339867127,-784.13,0.00011232,2]
[324803636,1714339867137,-1332.25,0.00011232,2]
[324803637,1714339867146,-10000.0,0.00011232,2]
[324803638,1714339867156,-311.949248,0.00011232,2]
[324803639,1714339867165,-10000.0,0.00011232,2]
[324803640,1714339867175,-311.949248,0.00011232,2]
[324803641,1714339867184,-10000.0,0.00011232,2]
[324803642,1714339867193,-311.949248,0.00011232,2]
[324803643,1714339867202,-1770.89,0.00011232,2]
[324803644,1714339867212,-10000.0,0.00011232,2]
[324803645,1714339867221,-10000.0,0.00011232,2]
[324803646,1714339867230,-3285.67,0.00011232,2]
[324803647,1714339867239,-500.0,0.00011232,2]
[324803648,1714339867249,-500.0,0.00011232,2]
[324803649,1714339867258,-1973.0,0.00011232,2]
[324803650,1714339867267,-500.0,0.00011232,2]
[324803651,1714339867276,-418.44055964,0.00011232,2]
[324803652,1714339867285,-151.0,0.00011232,2]
[324803653,1714339867295,-500.0,0.00011232,2]
[324803654,1714339867304,-151.0,0.00011232,2]
[324803655,1714339867314,-500.0,0.00011232,2]
[324803656,1714339867323,-581.39,0.00011232,2]
[324803657,1714339867333,-151.0,0.00011232,2]
[324803658,1714339867342,-151.0,0.00011232,2]
[324803659,1714339867351,-151.0,0.00011232,2]
[324803660,1714339867360,-500.0,0.00011232,2]
[324803661,1714339867370,-5056.57,0.00011232,2]
[324803662,1714339867380,-500.0,0.00011232,2]
[324803663,1714339867389,-500.0,0.00011232,2]
[324803664,1714339867399,-528.94,0.00011232,2]
[324803665,1714339867410,-1960.25,0.00011232,2]
[324803666,1714339867420,-500.0,0.00011232,2]
[324803667,1714339867430,-500.0,0.00011232,2]
[324803668,1714339867439,-444.05451945,0.00011232,2]
[324803669,1714339867449,-500.0,0.00011232,2]
[324803670,1714339867458,-854.46,0.00011232,2]
[324803671,1714339867468,-151.0,0.00011232,2]
[324803672,1714339867662,-151.0,0.00011232,2]
[324803673,1714339867672,-500.0,0.00011232,2]
[324803674,1714339867681,-151.0,0.00011232,2]
[324803675,1714339867691,-151.0,0.00011232,2]
[324803676,1714339867700,-151.0,0.00011232,2]
[324803677,1714339867709,-505.33,0.00011232,2]
[324803678,1714339867718,-500.0,0.00011232,2]
[324803679,1714339867727,-500.0,0.00011232,2]
[324803680,1714339867737,-151.0,0.00011232,2]
[324803681,1714339867746,-248.894207,0.00011232,2]
[324803682,1714339867757,-1460.22,0.00011232,2]
[324803683,1714339867769,-151.0,0.00011232,2]
[324803684,1714339867778,-151.0,0.00011232,2]
[324803685,1714339867789,-500.0,0.00011232,2]
[324803686,1714339867799,-293.370385,0.00011232,2]
[324803687,1714339867810,-202.927238,0.00011232,2]
[324803688,1714339867819,-500.0,0.00011232,2]
[324803689,1714339867828,-500.0,0.00011232,2]
[324803690,1714339867837,-503.14778219,0.00011232,2]
[324803691,1714339867848,-500.0,0.00011232,2]
[324803692,1714339867857,-500.0,0.00011232,2]
[324803693,1714339867866,-500.0,0.00011232,2]
[324803694,1714339867876,-4144.13,0.00011232,2]
[324803695,1714339867885,-500.0,0.00011232,2]
[324803696,1714339867894,-500.0,0.00011232,2]
[324803697,1714339867904,-2730.97,0.00011232,2]
[324803698,1714339867913,-500.0,0.00011232,2]
[324803699,1714339867923,-2002.94,0.00011232,2]
[324803700,1714339867932,-1318.77,0.00011232,2]
[324803701,1714339867942,-500.0,0.00011232,2]
[324803702,1714339867951,-500.0,0.00011232,2]
[324803703,1714339867960,-500.0,0.00011232,2]
[324803704,1714339867969,-500.0,0.00011232,2]
[324803705,1714339867979,-500.0,0.00011232,2]
[324803706,1714339867989,-151.0,0.00011232,2]
[324803707,1714339867998,-151.0,0.00011232,2]
[324803708,1714339868007,-151.0,0.00011232,2]
[324803709,1714339868017,-1001.05,0.00011232,2]
[324803710,1714339868027,-151.0,0.00011232,2]
[324803711,1714339868036,-151.0,0.00011232,2]
[324803712,1714339868046,-151.0,0.00011232,2]
[324803713,1714339868055,-275.438192,0.00011232,2]
[324803714,1714339868065,-500.0,0.00011232,2]
[324803715,1714339868074,-151.0,0.00011232,2]
[324803716,1714339868083,-151.0,0.00011232,2]
[324803717,1714339868093,-595.16743598,0.00011232,2]
[324803718,1714339868102,-500.0,0.00011232,2]
[324803719,1714339868111,-151.0,0.00011232,2]
[324803720,1714339868120,-500.0,0.00011232,2]
[324803721,1714339868130,-9331.99,0.00011232,2]
[324803722,1714339868139,-500.0,0.00011232,2]
[324803723,1714339868148,-246.275697,0.00011232,2]
[324803724,1714339868157,-500.0,0.00011232,2]
[324803725,1714339868166,-500.0,0.00011232,2]
[324803726,1714339868176,-4277.49,0.00011232,2]
[324803727,1714339868186,-500.0,0.00011232,2]
[324803728,1714339868195,-500.0,0.00011232,2]
[324803729,1714339868204,-5193.46,0.00011232,2]
[324803730,1714339868213,-500.0,0.00011232,2]
[324803731,1714339868222,-519.93440877,0.00011232,2]
[324803732,1714339868232,-775.85,0.00011232,2]
[324803733,1714339868241,-743.46,0.00011232,2]
[324803734,1714339868250,-500.0,0.00011232,2]
[324803735,1714339868259,-500.0,0.00011232,2]
[324803736,1714339868269,-375.242085,0.00011232,2]
[324803737,1714339868278,-375.242085,0.00011232,2]
[324803738,1714339868287,-375.242085,0.00011232,2]
[324803739,1714339868297,-375.242085,0.00011232,2]
[324803740,1714339868306,-457.499535,0.00011233,2]
[324803741,1714339868315,-457.499535,0.00011233,2]
[324803742,1714339868324,-434.448164,0.00011233,2]
[324803743,1714339868333,-434.448164,0.00011233,2]
[324803744,1714339868342,-771.600828,0.00011233,2]
[324803745,1714339868351,-761.063018,0.00011233,2]
[324803746,1714339868360,-771.600828,0.00011233,2]
[324803747,1714339868369,-761.063018,0.00011233,2]
[324803748,1714339868378,-151.0,0.00011233,2]
[324803749,1714339868387,-151.0,0.00011233,2]
[324803750,1714339868397,-282.8427,0.00011233,2]
[324803751,1714339868406,-410.529015,0.00011233,2]
[324803752,1714339868416,-282.8427,0.00011233,2]
[324803753,1714339868426,-151.0,0.00011233,2]
[324803754,1714339868435,-410.529015,0.00011233,2]
[324803755,1714339868443,-151.0,0.00011233,2]
[324803756,1714339868453,-151.0,0.00011233,2]
[324803757,1714339868462,-151.0,0.00011233,2]
[324803758,1714339868471,-242.652128,0.00011233,2]
[324803759,1714339868480,-242.652128,0.00011233,2]
[324803760,1714339868489,-155.399926,0.00011233,2]
[324803761,1714339868498,-175.36,0.00011287,2]
[324803762,1714339868507,-368.89475497,0.00011405,2]
[324803763,1714339868516,-3252.39319555,0.00011415,2]
[324803764,1714339868526,-2464.114562,0.00011415,2]
[324803765,1714339868535,-2464.114562,0.00011415,2]
[324803766,1714339868544,-174.454043,0.00011415,2]
[324803767,1714339868553,-174.454043,0.00011415,2]
[324803768,1714339868562,-151.0,0.00011415,2]
[324803769,1714339868571,-456.16194059,0.000115,2]
[324803770,1714339868580,-1034.6412428,0.00011505,3]
[324803771,1714339868589,-1249.83,0.00011505,2]
[324803772,1714339868598,-1249.83,0.00011505,2]
[324803773,1714339868607,-151.0,0.00011506,2]
[324803774,1714339868617,-151.0,0.00011506,2]
[324803775,1714339868627,-418.434368,0.00011506,2]
[324803776,1714339868636,-418.434368,0.00011506,2]
[324803777,1714339868645,-418.434368,0.00011506,2]
[324803778,1714339868655,-418.434368,0.00011506,2]
[324803779,1714339868664,-500.0,0.00011506,2]
[324803780,1714339868673,-500.0,0.00011506,2]
[324803781,1714339868682,-500.0,0.00011506,2]
[324803782,1714339868692,-621.25,0.00011506,2]
[324803783,1714339868701,-500.0,0.00011506,2]
[324803784,1714339868711,-500.0,0.00011506,2]
[324803785,1714339868719,-500.0,0.00011506,2]
[324803786,1714339868729,-500.0,0.00011506,2]
[324803787,1714339868738,-500.0,0.00011506,2]
[324803788,1714339868747,-500.0,0.00011506,2]
[324803789,1714339868756,-500.0,0.00011506,2]
[324803790,1714339868770,-500.0,0.00011506,2]
[324803791,1714339868779,-500.0,0.00011506,2]
[324803792,1714339868789,-201.46931717,0.00011506,2]
[324803793,1714339868798,-500.0,0.00011506,2]
[324803794,1714339868808,-500.0,0.00011506,2]